Workbook

Sheet ELISA DATA
A1: Master Spreadsheet for percent alpha-hemolysin production calculations
B3: OD 650 nm from Plate Reader
B4: Plate 1 | P4: Growth
C5: Blank | D5: Solvent | E5: Compounds of Interest | P5: Treatment | Q5: # of Colonies | S5: Average | T5: StDev | U5: CFU/mL (Step 41) | V5: StDev | W5: Normalized to DMSO | X5: StDev
D6: DMSO | E6: I | F6: II | G6: III | H6: IV | I6: V | J6: VI | K6: VII | L6: VIII | M6: IX | N6: X | Q6: 10^4 plate | R6: 10^5 plate
C7: 1 | D7: 2 | E7: 3 | F7: 4 | G7: 5 | H7: 6 | I7: 7 | J7: 8 | K7: 9 | L7: 10 | M7: 11 | N7: 12 | P7: Zero hour time point | Q7: 40 | S7: =AVERAGE(Q7:R7) -> 40 | T7: =STDEV(Q7:R7) ->  | U7: =S7*100*10^5/0.1 -> 4000000000 | V7: =T7*100*10^5/0.1 ->  | W7: =(U7/$U$8)*100 -> 80
B8: A | C8: 0.002 | D8: 0.501 | E8: 0.2942 | F8: 0.259 | G8: 0.2343 | H8: 0.498 | I8: 0.7 | J8: 0.56 | K8: 0.425 | L8: 0.3321 | M8: 0.562 | N8: 0.424 | P8: DMSO | R8: 50 | S8: 50 | T8: =STDEV(Q8:R8) ->  | U8: =S8*100*10^5/0.1 -> 5000000000 | V8: =T8*100*10^5/0.1 ->  | W8: 100
B9: B | C9: 0.001 | D9: 0.562 | E9: 0.2752 | F9: 0.278 | G9: 0.2393 | H9: 0.55 | I9: 0.724 | J9: 0.553 | K9: 0.41 | L9: 0.34 | M9: 0.542 | N9: 0.3985 | P9: I | R9: 69 | S9: 69 | U9: 6900000000 | W9: 138
B10: C | C10: 0.003 | D10: 0.525 | E10: 0.2763 | F10: 0.2443 | G10: 0.2458 | H10: 0.47 | I10: 0.75 | J10: 0.542 | K10: 0.45 | L10: 0.314 | M10: 0.5874 | N10: 0.4108 | P10: II | R10: 45 | S10: 45 | U10: 4500000000 | W10: 90
B11: D | C11: 0.005 | D11: 0.536 | E11: 0.262 | F11: 0.257 | G11: 0.2322 | H11: 0.45 | I11: 0.735 | J11: 0.586 | K11: 0.403 | L11: 0.368 | M11: 0.5621 | N11: 0.4952 | P11: III | R11: 37 | S11: 37 | U11: 3700000000 | W11: 74
B12: E | C12: 0.001 | D12: 0.545 | E12: 0.257 | F12: 0.263 | G12: 0.2235 | H12: 0.49 | I12: 0.684 | J12: 0.574 | K12: 0.4621 | L12: 0.3568 | M12: 0.582 | N12: 0.452 | P12: IV | R12: 81 | S12: 81 | U12: 8100000000 | W12: 162
B13: F | C13: 0.004 | D13: 0.571 | E13: 0.2429 | F13: 0.3 | G13: 0.2264 | H13: 0.532 | I13: 0.715 | J13: 0.5124 | K13: 0.428 | L13: 0.3424 | M13: 0.498 | N13: 0.397 | P13: V | R13: 48 | S13: 48 | U13: 4800000000 | W13: 96
B14: G | C14: 0.007 | D14: 0.558 | E14: 0.2446 | F14: 0.28 | G14: 0.2148 | H14: 0.524 | I14: 0.675 | J14: 0.578 | K14: 0.438 | L14: 0.3698 | M14: 0.621 | N14: 0.472 | P14: VI | R14: 52 | S14: 52 | U14: 5200000000 | W14: =(U14/$U$8)*100 -> 104 | X14: =(V14/$U$8)*100 -> 
B15: H | C15: 0.011 | D15: 0.562 | E15: 0.2245 | F15: 0.332 | G15: 0.2361 | H15: 0.51 | I15: 0.724 | J15: 0.543 | K15: 0.443 | L15: 0.3785 | M15: 0.598 | N15: 0.5071 | P15: VII | R15: 54 | S15: 54 | U15: 5400000000 | W15: =(U15/$U$8)*100 -> 108
B16: average | C16: =AVERAGE(C8:C15) -> 0.00425 | D16: 0.545 | E16: 0.2595875 | F16: 0.2766625 | G16: 0.23155 | H16: 0.503 | I16: 0.713375 | J16: 0.55605 | K16: 0.4323875 | L16: 0.3502 | M16: 0.5690625 | N16: =AVERAGE(N8:N15) -> 0.444575 | P16: VIII | R16: 62 | S16: 62 | U16: 6200000000 | W16: =(U16/$U$8)*100 -> 124
B17: stdev | C17: =STDEV(C8:C15) -> 0.003412163118 | D17: 0.02342160175 | E17: 0.02225767524 | F17: 0.02816375267 | G17: 0.009737262742 | H17: 0.03301947477 | I17: 0.02550035014 | J17: 0.02390140462 | K17: 0.01991341526 | L17: 0.02187098535 | M17: 0.03764332373 | N17: =STDEV(N8:N15) -> 0.04347395772 | P17: IX | R17: 73 | S17: 73 | U17: 7300000000 | W17: =(U17/$U$8)*100 -> 146
P18: X | R18: 78 | S18: 78 | U18: 7800000000 | W18: =(U18/$U$8)*100 -> 156
B19: Units Hla/mL (Step 42) | F19: Units Hla/CFU (Step 43) | J19: Percent Hla production (Step 44) | P19: Note: Both plates can be counted if you wish to obtain statistical power in the growth calculations.
B20: [(average OD sample) – (average OD blank)] x (sample dilution factor) / ( # ml sample added) | F20: (# units/ml) / (# CFU/ml) | J20: (units/CFU treated) / (units/CFU DMSO) x 100
B22: Compounds of Interest | C22: Average | D22: StDev | F22: Compounds of Interest | G22: Average | H22: StDev | J22: Compounds of Interest | K22: Average | L22: StDev
B23: DMSO | C23: =((D16-$C$16)*$C$35)/$C$34 -> 43.26 | D23: =((D17-$C$17)*$C$35)/$C$34 -> 1.600755091 | F23: DMSO | G23: =C23/'ELISA DATA'!U8 -> 8.652e-09 | H23: =D23/'ELISA DATA'!U8 -> 3.201510181e-10 | J23: DMSO | K23: =G23/$G$23*100 -> 100 | L23: 3.700312276
B24: I | C24: =((E16-$C$16)*$C$35)/$C$34 -> 20.427 | D24: =((E17-$C$17)*$C$35)/$C$34 -> 1.50764097 | F24: I | G24: =C24/'ELISA DATA'!U9 -> 2.960434783e-09 | H24: =D24/'ELISA DATA'!U9 -> 2.184986913e-10 | J24: I | K24: 34.21676818 | L24: 2.525412521
B25: II | C25: =((F16-$C$16)*$C$35)/$C$34 -> 21.793 | D25: =((F17-$C$17)*$C$35)/$C$34 -> 1.980127164 | F25: II | G25: =C25/'ELISA DATA'!U10 -> 4.842888889e-09 | H25: =D25/'ELISA DATA'!U10 -> 4.400282587e-10 | J25: II | K25: 55.97421277 | L25: 5.085855971
B26: III | C26: =((G16-$C$16)*$C$35)/$C$34 -> 18.184 | D26: =((G17-$C$17)*$C$35)/$C$34 -> 0.50600797 | F26: III | G26: =C26/'ELISA DATA'!U11 -> 4.914594595e-09 | H26: =D26/'ELISA DATA'!U11 -> 1.367589108e-10 | J26: III | K26: 56.80298884 | L26: 1.580662399
B27: IV | C27: =((H16-$C$16)*$C$35)/$C$34 -> 39.9 | D27: =((H17-$C$17)*$C$35)/$C$34 -> 2.368584932 | F27: IV | G27: =C27/'ELISA DATA'!U12 -> 4.925925926e-09 | H27: =D27/'ELISA DATA'!U12 -> 2.924178929e-10 | J27: IV | K27: 56.93395661 | L27: 3.379772225
B28: V | C28: =((I16-$C$16)*$C$35)/$C$34 -> 56.73 | D28: =((I17-$C$17)*$C$35)/$C$34 -> 1.767054962 | F28: V | G28: =C28/'ELISA DATA'!U13 -> 1.181875e-08 | H28: =D28/'ELISA DATA'!U13 -> 3.681364503e-10 | J28: V | K28: 136.6013638 | L28: 4.254928922
B29: VI | C29: =((J16-$C$16)*$C$35)/$C$34 -> 44.144 | D29: =((J17-$C$17)*$C$35)/$C$34 -> 1.63913932 | F29: VI | G29: =C29/'ELISA DATA'!U14 -> 8.489230769e-09 | H29: =D29/'ELISA DATA'!U14 -> 3.152191e-10 | J29: VI | K29: 98.11870977 | L29: 3.643309062
B30: VII | C30: =((K16-$C$16)*$C$35)/$C$34 -> 34.251 | D30: =((K17-$C$17)*$C$35)/$C$34 -> 1.320100171 | F30: VII | G30: =C30/'ELISA DATA'!U15 -> 6.342777778e-09 | H30: =D30/'ELISA DATA'!U15 -> 2.444629946e-10 | J30: VII | K30: 73.30996045 | L30: 2.825508491
B31: VIII | C31: =((L16-$C$16)*$C$35)/$C$34 -> 27.676 | D31: =((L17-$C$17)*$C$35)/$C$34 -> 1.476705778 | F31: VIII | G31: =C31/'ELISA DATA'!U16 -> 4.463870968e-09 | H31: =D31/'ELISA DATA'!U16 -> 2.381783513e-10 | J31: VIII | K31: =G31/$G$23*100 -> 51.59351558 | L31: =H31/$G$23*100 -> 2.75287045
B32: IX | C32: =((M16-$C$16)*$C$35)/$C$34 -> 45.185 | D32: =((M17-$C$17)*$C$35)/$C$34 -> 2.738492849 | F32: IX | G32: =C32/'ELISA DATA'!U17 -> 6.189726027e-09 | H32: =D32/'ELISA DATA'!U17 -> 3.751360067e-10 | J32: IX | K32: =G32/$G$23*100 -> 71.54098506 | L32: 4.335829943
B33: X | C33: =((N16-$C$16)*$C$35)/$C$34 -> 35.226 | D33: =((N17-$C$17)*$C$35)/$C$34 -> 3.204943568 | F33: X | G33: =C33/'ELISA DATA'!U18 -> 4.516153846e-09 | H33: =D33/'ELISA DATA'!U18 -> 4.108902011e-10 | J33: X | K33: =G33/$G$23*100 -> 52.1978022 | L33: 4.749077682
B34: Volume of flitrate added (mL) | C34: 0.1
B35: Filtrate dilution factor | C35: 8
